fUST/lending_fUST_20240418
["ID","MTS","AMOUNT","RATE_DAILY","PERIOD"]
[322845340,1713393043482,-1186.54546115,0.00018899,2]
[322845522,1713394238364,-154.84515485,0.00013939,2]
[322845523,1713394238374,-203.92427323,0.0001394,2]
[322845524,1713394238385,-467.87279548,0.0001394,2]
[322845525,1713394238395,-659.43850789,0.00013941,2]
[322845526,1713394238404,-300.0,0.00013941,2]
[322845527,1713394238414,-300.0,0.00013941,2]
[322845528,1713394238423,-2125.76560283,0.00013942,2]
[322845529,1713394238435,-1875.79814985,0.00013942,2]
[322845530,1713394238445,-789.640041,0.00013942,2]
[322845531,1713394238456,-789.640041,0.00013942,2]
[322845532,1713394238466,-1009.42041158,0.00013943,2]
[322845533,1713394238475,-789.640041,0.00013943,2]
[322845535,1713394238485,-926.63477986,0.00014,2]
[322845537,1713394238494,-151.0,0.00014032,2]
[322845539,1713394238503,-151.0,0.00014035,2]
[322845540,1713394238512,-286.41,0.00014036,2]
[322845541,1713394238520,-286.41,0.00014036,2]
[322845542,1713394238530,-151.0,0.00014036,2]
[322845543,1713394238538,-286.41,0.00014037,2]
[322845544,1713394238548,-286.41,0.00014037,2]
[322845545,1713394238665,-151.0,0.00014037,2]
[322845546,1713394238678,-57910.55464123,0.00014042,2]
[322845555,1713394240521,-672.6914059,0.00013938,2]
[322845556,1713394240531,-789.640041,0.00014035,2]
[322845557,1713394240541,-789.640041,0.00014036,2]
[322845558,1713394240550,-789.640041,0.00014037,2]
[322845559,1713394240558,-789.640041,0.00014037,2]
[322845560,1713394240567,-1178.75372827,0.00014042,2]
[322845561,1713394240578,-789.640041,0.00014042,2]
[322845562,1713394240588,-772.722932,0.00014043,2]
[322845563,1713394240597,-772.722932,0.00014043,2]
[322845564,1713394240606,-772.722932,0.00014043,2]
[322845565,1713394240616,-772.722932,0.00014043,2]
[322845566,1713394240625,-151.0,0.00014043,2]
[322845567,1713394240634,-151.0,0.00014043,2]
[322845568,1713394240643,-286.41,0.00014043,2]
[322845569,1713394240653,-286.41,0.00014043,2]
[322845570,1713394240664,-286.41,0.00014043,2]
[322845571,1713394240672,-286.41,0.00014043,2]
[322845572,1713394240684,-286.41,0.00014043,2]
[322845573,1713394240693,-286.41,0.00014043,2]
[322845574,1713394240703,-286.41,0.00014043,2]
[322845575,1713394240712,-286.41,0.00014043,2]
[322845576,1713394240721,-151.0,0.00014043,2]
[322845577,1713394240731,-151.0,0.00014043,2]
[322845578,1713394240741,-151.0,0.00014043,2]
[322845579,1713394240750,-151.0,0.00014043,2]
[322845580,1713394240759,-789.640041,0.00014043,2]
[322845581,1713394240768,-789.640041,0.00014043,2]
[322845582,1713394240777,-286.41,0.00014046,2]
[322845583,1713394240786,-286.41,0.00014046,2]
[322845584,1713394240795,-772.722932,0.00014047,2]
[322845585,1713394240806,-772.722932,0.00014047,2]
[322845586,1713394240815,-772.722932,0.00014047,2]
[322845587,1713394240825,-772.722932,0.00014047,2]
[322845588,1713394240835,-772.722932,0.00014047,2]
[322845589,1713394240844,-772.722932,0.00014047,2]
[322845590,1713394240854,-772.722932,0.00014047,2]
[322845591,1713394240863,-772.722932,0.00014047,2]
[322845592,1713394240873,-772.722932,0.00014047,2]
[322845593,1713394240884,-772.722932,0.00014047,2]
[322845594,1713394240894,-151.0,0.00014047,2]
[322845595,1713394240904,-151.0,0.00014047,2]
[322845596,1713394240913,-151.0,0.00014047,2]
[322845597,1713394240923,-151.0,0.00014047,2]
[322845598,1713394240933,-286.41,0.00014047,2]
[322845599,1713394240942,-286.41,0.00014047,2]
[322845600,1713394240951,-286.41,0.00014047,2]
[322845601,1713394240960,-286.41,0.00014047,2]
[322845602,1713394240971,-286.41,0.00014047,2]
[322845603,1713394240981,-286.41,0.00014047,2]
[322845604,1713394240991,-1018.328307,0.00014048,2]
[322845605,1713394241000,-155.37410342,0.00014998,2]
[322845606,1713394241009,-772.722932,0.00014999,2]
[322845607,1713394241019,-772.722932,0.00014999,2]
[322845608,1713394241028,-783.87866091,0.00015,2]
[322845609,1713394241037,-772.722932,0.00015,2]
[322845610,1713394241046,-772.722932,0.00015,2]
[322845611,1713394241055,-772.722932,0.00015,2]
[322845612,1713394241064,-772.722934,0.00015,2]
[322845613,1713394241074,-156.84586358,0.00015,2]
[322845614,1713394241083,-154.84515485,0.00015,2]
[322845615,1713394241092,-937.89373734,0.00015,2]
[322845616,1713394241101,-154.84515485,0.00015,2]
[322845617,1713394241111,-2096.98803724,0.00015,2]
[322845618,1713394241120,-167.32835926,0.00015086,2]
[322845619,1713394241129,-154.042065,0.00015087,2]
[322845620,1713394241138,-151.0,0.00015087,2]
[322845621,1713394241147,-151.0,0.00015087,2]
[322845622,1713394241156,-151.0,0.00015088,2]
[322845623,1713394241165,-151.0,0.00015088,2]
[322845624,1713394241174,-151.0,0.00015088,2]
[322845625,1713394241186,-278.742715,0.00015088,2]
[322845626,1713394241196,-151.0,0.00015101,2]
[322845627,1713394241205,-151.0,0.00015102,2]
[322845628,1713394241214,-151.0,0.00015102,2]
[322845629,1713394241223,-151.0,0.00015102,2]
[322845630,1713394241232,-151.0,0.00015102,2]
[322845631,1713394241241,-151.0,0.00015103,2]
[322845632,1713394241250,-151.0,0.00015104,2]
[322845633,1713394241259,-420.0,0.00015274,2]
[322845634,1713394241268,-420.0,0.00015335,2]
[322845635,1713394241277,-272.32070711,0.000165,2]
[322845636,1713394241286,-587.0,0.00016735,2]
[322845637,1713394241296,-587.0,0.00016869,2]
[322845638,1713394241305,-580.22150395,0.00018,2]
[322845639,1713394241314,-823.0,0.00018335,2]
[322845640,1713394241324,-472.25754556,0.000184,2]
[322845641,1713394241333,-602.61216035,0.000185,2]
[322845642,1713394241342,-823.0,0.00018555,2]
[322845643,1713394241351,-151.0,0.00018799,2]
[322845644,1713394241360,-7858.55367278,0.00018897,2]
[322845645,1713394241369,-347.94958658,0.00018897,2]
[322845646,1713394241378,-203.60696342,0.00018897,2]
[322845647,1713394241388,-192.496119,0.00018897,2]
[322845648,1713394241397,-14321.12801894,0.00018899,2]
[322845664,1713394243547,-310.27607527,0.00013942,2]
[322845682,1713394246489,-479.36396573,0.00013942,2]
[322845683,1713394246499,-789.640041,0.00013942,2]
[322845685,1713394246508,-789.640041,0.00013943,2]
[322845686,1713394246518,-789.640041,0.00014035,2]
[322845687,1713394246527,-789.640041,0.00014036,2]
[322845688,1713394246536,-789.640041,0.00014037,2]
[322845690,1713394246545,-789.640041,0.00014037,2]
[322845692,1713394246554,-789.640041,0.00014042,2]
[322845694,1713394246563,-789.640041,0.00014043,2]
[322845695,1713394246572,-789.64005,0.00014043,2]
[322845697,1713394246580,-12207.75381177,0.00018899,2]
[322845708,1713395230100,-937.89373734,0.00018147,2]
[322845709,1713395230120,-926.63477986,0.00018148,2]
[322845710,1713395230140,-156.84586358,0.00018149,2]
[322845711,1713395230162,-154.84515485,0.00018149,2]
[322845712,1713395230181,-2096.98803724,0.00018149,2]
[322845713,1713395230201,-272.32070711,0.0001815,2]
[322845714,1713395230221,-300.0,0.0001815,2]
[322845715,1713395230244,-300.0,0.0001815,2]
[322845716,1713395230263,-509.164153,0.00018173,2]
[322845717,1713395230282,-172.63028827,0.000186,2]
[322845718,1713395230300,-703.29109436,0.00018898,2]
[322845719,1713395230321,-13510.93943961,0.00018899,2]
[322845720,1713395236103,-467.87279548,0.00018147,2]
[322845721,1713395236124,-1511.39515753,0.00018899,2]
[322845722,1713395236144,-154.84515485,0.00018899,2]
[322845723,1713395236167,-6809.63632903,0.000189,2]
[322845724,1713395236186,-188.96976676,0.0001897,2]
[322845725,1713395236207,-168.658078,0.00019178,2]
[322845726,1713395236228,-163.644784,0.00019178,2]
[322845727,1713395236249,-166.216605,0.00019178,2]
[322845728,1713395236268,-169.5705118,0.00019622,2]
[322845729,1713395236288,-155.43092042,0.00019724,2]
[322845730,1713395236307,-420.0,0.00019801,2]
[322845731,1713395236327,-154.84515485,0.00019928,2]
[322845732,1713395236347,-420.0,0.00019965,2]
[322845733,1713395236367,-502.67386036,0.0002,2]
[322845734,1713395236387,-154.84515485,0.0002,2]
[322845735,1713395236407,-400.0,0.0002,2]
[322845736,1713395236427,-20000.0,0.0002,5]
[322845737,1713395236447,-523.80732363,0.0002,4]
[322845738,1713395236466,-200.0,0.0002,2]
[322845739,1713395236487,-198.16376793,0.0002,2]
[322845740,1713395236506,-1000.0,0.0002,2]
[322845741,1713395236525,-354.39971412,0.0002,2]
[322845742,1713395236545,-277.60171443,0.0002,2]
[322845743,1713395236564,-237.92490957,0.0002,2]
[322845744,1713395236584,-688.59429255,0.0002,2]
[322845745,1713395236604,-241.20667916,0.0002,2]
[322845746,1713395236624,-521.03498526,0.000216,2]
[322845747,1713395236643,-587.0,0.00021601,2]
[322845748,1713395236662,-611.8741466,0.00021918,2]
[322845749,1713395236682,-587.0,0.00021962,2]
[322845750,1713395236702,-158.857458,0.00022999,2]
[322845751,1713395236722,-22768.0,0.00023,2]
[322845752,1713395236743,-823.0,0.00023566,2]
[322845753,1713395236763,-243.24834116,0.00023569,2]
[322845754,1713395236787,-810.02909196,0.00023584,2]
[322845755,1713395236807,-500.0,0.00023898,2]
[322845756,1713395236827,-500.0,0.00023898,2]
[322845757,1713395236847,-500.0,0.00023898,2]
[322845758,1713395236867,-268.78128529,0.00023898,2]
[322845759,1713395236889,-500.0,0.00023898,2]
[322845760,1713395236912,-500.0,0.00023898,2]
[322845761,1713395236931,-500.0,0.00023898,2]
[322845762,1713395236952,-500.0,0.00023898,2]
[322845763,1713395236974,-500.0,0.00023898,2]
[322845764,1713395236995,-526.08367309,0.00023898,2]
[322845765,1713395237014,-500.0,0.00023898,2]
[322845766,1713395237034,-500.0,0.00023898,2]
[322845767,1713395237055,-500.0,0.00023898,2]
[322845768,1713395237077,-202.31462968,0.00023898,2]
[322845769,1713395237098,-500.0,0.00023898,2]
[322845770,1713395237118,-500.0,0.00023898,2]
[322845771,1713395237139,-500.0,0.00023898,2]
[322845772,1713395237163,-169.56485256,0.00023898,2]
[322845773,1713395237183,-6809.63632903,0.000239,2]
[322845774,1713395237204,-823.0,0.00024158,2]
[322845775,1713395237227,-377.80603644,0.00024558,2]
[322845776,1713395237250,-11158.55469759,0.00024656,2]
[322845777,1713395237271,-203.83136061,0.00024656,2]
[322845778,1713395237293,-344.39904384,0.00024656,2]
[322845779,1713395237316,-2125.76560283,0.00024657,2]
[322845780,1713395237336,-200.0,0.00024658,15]
[322845781,1713395237357,-4944.58501174,0.00024658,10]
[322845782,1713395247153,-721.1933845,0.00022556,2]
[322845879,1713395438547,-221.61374403,0.00018899,2]
[322845880,1713395438556,-300.0,0.00022555,2]
[322845881,1713395438565,-1548.68539185,0.00022556,2]
[322845882,1713395438574,-154.8761022,0.00022556,2]
[322845883,1713395438583,-3062.64298016,0.00022556,2]
[322845884,1713395438592,-154.84515485,0.00022556,2]
[322845885,1713395438601,-10102.36070328,0.00022556,2]
[322845886,1713395438610,-926.63477986,0.00024409,2]
[322845887,1713395438620,-158.99062783,0.0002441,2]
[322845888,1713395438629,-158.857458,0.00024655,2]
[322845889,1713395438638,-2096.98803724,0.00024655,2]
[322845890,1713395438647,-154.84515485,0.00024656,2]
[322845891,1713395438658,-243.24834116,0.00024656,2]
[322845892,1713395438667,-715.41152469,0.00024658,10]
[322845929,1713395440658,-156.84586358,0.00024654,2]
[322845930,1713395440667,-173.23735307,0.00024658,10]
[322845931,1713395440676,-200.0,0.00024658,2]
[322845932,1713395440685,-629.5014546,0.00024763,2]
[322845933,1713395440694,-420.0,0.00024811,2]
[322845934,1713395440703,-254.582076,0.00025352,2]
[322845935,1713395440711,-354.39971412,0.00025472,2]
[322845936,1713395440720,-188.96976676,0.00025472,2]
[322845937,1713395440729,-937.89373734,0.00025473,2]
[322845938,1713395440738,-200.0,0.00025477,2]
[322845939,1713395440747,-200.0,0.00025757,15]
[322845940,1713395440756,-883.24286015,0.00025793,2]
[322845942,1713395440766,-620.47507273,0.00026001,2]
[322845944,1713395440775,-332.07459253,0.00027,2]
[322845946,1713395440784,-587.0,0.00027292,2]
[322845948,1713395440793,-620.02375364,0.00027301,2]
[322845950,1713395440802,-783.87866091,0.00027319,2]
[322845952,1713395440811,-151.57213384,0.0002732,2]
[322845954,1713395440821,-1390.49256712,0.00027346,2]
[322845956,1713395440830,-270.03026476,0.00027346,2]
[322845958,1713395440839,-602.61216035,0.00027346,2]
[322845960,1713395440848,-165.809723,0.00027397,2]
[322845962,1713395440859,-422.056251,0.00027397,2]
[322845964,1713395440867,-161.469583,0.00027397,2]
[322845966,1713395440876,-253.387329,0.00027397,2]
[322845968,1713395440885,-223.355718,0.00027397,2]
[322845970,1713395440895,-1000.0,0.00027397,2]
[322845972,1713395440904,-166.666666,0.00027397,2]
[322845974,1713395440914,-2269.87877635,0.00027556,2]
[322845976,1713395440923,-302.24482916,0.00027938,2]
[322845978,1713395440933,-203.22671641,0.00027998,2]
[322845980,1713395440942,-173.57499817,0.00027998,2]
[322845982,1713395440951,-156.20487262,0.00027998,2]
[322845984,1713395440960,-301.35961672,0.00027998,2]
[322845986,1713395440969,-157.4992408,0.00027998,2]
[322845988,1713395440977,-170.46578946,0.00027998,2]
[322845989,1713395440986,-300.65867133,0.00027998,2]
[322845991,1713395440995,-407.92040002,0.00027998,2]
[322845993,1713395441005,-942.08246958,0.00027998,2]
[322845995,1713395441013,-521.03498526,0.00027998,2]
[322845997,1713395441022,-231.68966445,0.00027998,2]
[322845999,1713395441031,-240.83271829,0.00027998,2]
[322846001,1713395441040,-474.3090317,0.00027999,2]
[322846003,1713395441049,-244.70162552,0.00027999,2]
[322846005,1713395441058,-78547.40751266,0.00028,2]
[322846067,1713395446883,-272.32070711,0.00024654,2]
[322846068,1713395446893,-448.87267739,0.00024654,2]
[322846069,1713395446937,-239.72161516,0.00024654,2]
[322846070,1713395446947,-237.92490957,0.00024654,2]
[322846071,1713395446957,-277.60171443,0.00024654,2]
[322846072,1713395446967,-1452.59248734,0.00028,2]
[322846073,1713395446976,-166.666666,0.00028038,2]
[322846074,1713395446986,-150.0,0.0002832,2]
[322846075,1713395446996,-166.666666,0.00028679,2]
[322846076,1713395447007,-266.7220136,0.00028769,2]
[322846077,1713395447017,-439.67218834,0.00028769,2]
[322846078,1713395447027,-500.0,0.00028769,2]
[322846079,1713395447037,-500.0,0.00028769,2]
[322846080,1713395447047,-488.31189336,0.00028769,2]
[322846082,1713395447057,-500.0,0.00028769,2]
[322846084,1713395447067,-500.0,0.00028769,2]
[322846086,1713395447077,-500.0,0.00028769,2]
[322846088,1713395447088,-600.12271599,0.00028769,2]
[322846089,1713395447097,-472.83831675,0.00028769,2]
[322846091,1713395447106,-500.0,0.00028769,2]
[322846092,1713395447115,-500.0,0.00028769,2]
[322846093,1713395447125,-500.0,0.00028769,2]
[322846094,1713395447134,-295.05980597,0.00028769,2]
[322846096,1713395447144,-48331.12097404,0.0002877,2]
[322846123,1713396109075,8000.0,2.876e-05,2]
[322846135,1713396434154,-188.96976676,0.00020773,2]
[322846136,1713396434178,-154.84515485,0.00020773,2]
[322846137,1713396434197,-937.89373734,0.00020774,2]
[322846138,1713396434219,-1310.15475715,0.00020774,2]
[322846139,1713396434239,-156.84586358,0.00020774,2]
[322846140,1713396434259,-688.59429255,0.00020775,2]
[322846141,1713396434279,-272.32070711,0.00020776,2]
[322846142,1713396434301,-300.0,0.00022553,2]
[322846143,1713396434321,-5895.17192931,0.00022554,2]
[322846144,1713396434342,-695.4832732,0.00022556,2]
[322846145,1713396434362,-420.0,0.00024808,2]
[322846146,1713396434381,-327.8248124,0.00025716,5]
[322846147,1713396434516,-168.658078,0.00025717,2]
[322846148,1713396434538,-254.582076,0.00025883,2]
[322846149,1713396434558,-756.62625878,0.0002667,2]
[322846150,1713396434579,-332.07459253,0.00027,2]
[322846151,1713396434600,-587.0,0.00027289,2]
[322846152,1713396434621,-157.519236,0.00027397,2]
[322846153,1713396434641,-400.953438,0.00027397,2]
[322846154,1713396434660,-1000.0,0.00027397,2]
[322846155,1713396434686,-166.666666,0.00027397,2]
[322846156,1713396434706,-166.666666,0.00028038,2]
[322846157,1713396434726,-158.99062783,0.00028482,3]
[322846158,1713396434748,-772.83750264,0.00028667,4]
[322846159,1713396434767,-2000.0,0.00028669,2]
[322846160,1713396434787,-241.79586332,0.0002867,2]
[322846161,1713396434807,-166.666666,0.00028679,2]
[322846162,1713396434827,-1000.0,0.000287,2]
[322846163,1713396434846,-150.0,0.000287,2]
[322846164,1713396434866,-650.51865162,0.00028767,2]
[322846165,1713396434887,-1933.58973003,0.00028767,2]
[322846166,1713396434907,-211.7214804,0.00028767,2]
[322846167,1713396434931,-220.93518029,0.00028768,2]
[322846168,1713396434952,-288.43845955,0.00028768,2]
[322846169,1713396434972,-158.857458,0.00028768,2]
[322846170,1713396434991,-243.24834116,0.00028768,2]
[322846171,1713396435011,-372.64890811,0.00028768,2]
[322846172,1713396435031,-231.08631534,0.00028768,2]
[322846173,1713396435050,-926.63477986,0.00028769,2]
[322846174,1713396435070,-490.60830873,0.00028769,2]
[322846175,1713396435091,-37053.83663614,0.00028769,2]
[322846176,1713396435110,-136146.272569,0.0002877,2]
[322846177,1713396435130,-154.84515485,0.0002877,2]
[322846178,1713396435150,-154.84515485,0.0002877,2]
[322846179,1713396435170,-755.44188678,0.0002877,2]
[322846180,1713396435197,-445.0,0.0002877,14]
[322846181,1713396435218,-10102.36070328,0.0002877,2]
[322846182,1713396435239,-5000.0,0.00029,2]
[322846183,1713396435258,-842.32290487,0.00029,2]
[322846184,1713396435279,-150.0,0.0002932,2]
[322846185,1713396435300,-166.666666,0.00029321,2]
[322846186,1713396435320,-150.0,0.000297,2]
[322846187,1713396435341,-417.0,0.00029726,2]
[322846188,1713396435361,-209.27652573,0.00029899,2]
[322846189,1713396435381,-441.85149502,0.00029899,2]
[322846190,1713396435401,-500.0,0.00029899,2]
[322846191,1713396435421,-471.481164,0.00029899,2]
[322846192,1713396435444,-338.51794179,0.00029899,2]
[322846193,1713396435465,-340.24505697,0.000299,2]
[322846194,1713396435486,-340.24505683,0.000299,2]
[322846195,1713396435507,-340.24505683,0.000299,2]
[322846196,1713396435531,-330.45667094,0.000299,2]
[322846318,1713396637880,-272.32070711,0.00024999,2]
[322846319,1713396637890,-188.35397327,0.00025,2]
[322846320,1713396637899,-156.84586358,0.00026669,2]
[322846322,1713396637908,-504.41750585,0.0002667,2]
[322846323,1713396637917,-332.07459253,0.00027,2]
[322846324,1713396637926,-188.96976676,0.00027395,2]
[322846325,1713396637936,-161.469583,0.00027397,2]
[322846326,1713396637944,-163.644784,0.00027762,2]
[322846327,1713396637953,-1000.0,0.00028025,2]
[322846328,1713396637962,-2000.0,0.00028669,2]
[322846329,1713396637971,-158.99062783,0.00029601,3]
[322846330,1713396637980,-417.0,0.00029839,2]
[322846331,1713396637989,-273.72242222,0.00029898,2]
[322846332,1713396637998,-612.24143816,0.00029899,2]
[322846333,1713396638006,-300.0,0.00029899,2]
[322846334,1713396638015,-340.24505683,0.000299,2]
[322846335,1713396638024,-340.24505683,0.000299,2]
[322846336,1713396638033,-340.24505683,0.000299,2]
[322846337,1713396638042,-340.24505683,0.000299,2]
[322846338,1713396638051,-340.24505683,0.000299,2]
[322846339,1713396638060,-340.24505683,0.000299,2]
[322846340,1713396638069,-340.24505683,0.000299,2]
[322846341,1713396638079,-340.24505683,0.000299,2]
[322846342,1713396638089,-340.24505683,0.000299,2]
[322846343,1713396638098,-340.24505683,0.000299,2]
[322846344,1713396638107,-340.24505683,0.000299,2]
[322846345,1713396638117,-340.24505683,0.000299,2]
[322846346,1713396638126,-340.24505683,0.000299,2]
[322846347,1713396638134,-1128.7629969,0.000299,2]
[322846366,1713396643046,-2156.98957084,0.000299,2]
[322846374,1713396646447,-6816.60813554,0.000299,2]
[322846375,1713396646457,-297.8296501,0.000299,2]
[322846376,1713396646466,-755.44188678,0.000299,2]
[322846377,1713396646475,-193.43669064,0.000299,2]
[322846378,1713396646484,-166.666666,0.00029962,2]
[322846379,1713396646493,-20579.22007188,0.00029987,2]
[322846380,1713396646576,-2260.1621221,0.00029987,2]
[322846387,1713397537177,-156.84586358,0.00023967,2]
[322846388,1713397537198,-188.96976676,0.00023968,2]
[322846389,1713397537218,-523.80732363,0.00023969,4]
[322846390,1713397537239,-272.32070711,0.0002397,2]
[322846391,1713397537258,-155.43092042,0.00023998,2]
[322846392,1713397537278,-300.0,0.00025488,2]
[322846393,1713397537298,-300.0,0.00025488,2]
[322846394,1713397537318,-20000.0,0.00025489,10]
[322846395,1713397537338,-676.23281481,0.00025771,2]
[322846396,1713397537358,-200.0,0.00025871,2]
[322846397,1713397537376,-167.022494,0.00026073,2]
[322846398,1713397537396,-611.8741466,0.00026509,2]
[322846399,1713397537416,-501.14534478,0.00027,2]
[322846400,1713397537436,-332.07459253,0.00027396,2]
[322846401,1713397537456,-166.666666,0.00027397,2]
[322846402,1713397537476,-240.717962,0.00027397,2]
[322846403,1713397537495,-1000.0,0.00027397,2]
[322846404,1713397537515,-420.0,0.00027598,2]
[322846405,1713397537533,-2606.15711358,0.00027887,2]
[322846406,1713397537552,-420.0,0.00028037,2]
[322846407,1713397537574,-166.666666,0.00028038,2]
[322846408,1713397537592,-166.666666,0.00028679,2]
[322846409,1713397537611,-10000.00000001,0.00028872,2]
[322846410,1713397537630,-166.666666,0.00029321,2]
[322846411,1713397537649,-417.0,0.00029337,2]
[322846412,1713397537670,-322.70303,0.00029711,2]
[322846413,1713397537688,-203.2761986,0.00029711,2]
[322846414,1713397537707,-203.2761986,0.00029711,2]
[322846415,1713397537727,-1743.67345875,0.000298,2]
[322846416,1713397537746,-2000.0,0.000298,2]
[322846417,1713397537765,-373.0,0.00029883,2]
[322846418,1713397537785,-761.4155361,0.000299,2]
[322846419,1713397537804,-9009.40933842,0.000299,2]
[322846420,1713397537824,-1000.0,0.000299,2]
[322846421,1713397537842,-154.74935252,0.000299,2]
[322846422,1713397537862,-257.63088911,0.000299,2]
[322846423,1713397537884,-257.63088909,0.000299,2]
[322846424,1713397537902,-257.63088909,0.000299,2]
[322846425,1713397537922,-257.63088909,0.000299,2]
[322846426,1713397537940,-198.16376793,0.00029927,2]
[322846427,1713397537960,-166.666666,0.00029962,2]
[322846428,1713397537979,-1011.44751243,0.00029987,2]
[322846429,1713397538000,-154.84515485,0.00029987,2]
[322846430,1713397538020,-154.84515485,0.00029987,2]
[322846431,1713397538040,-154.84515485,0.00029987,2]
[322846432,1713397538060,-452.22449614,0.00029998,2]
[322846433,1713397538081,-241.20667916,0.00029998,2]
[322846434,1713397538101,-521.03498526,0.00029998,2]
[322846435,1713397538120,-158.857458,0.00029998,2]
[322846436,1713397538139,-1511.39515753,0.00029998,2]
[322846437,1713397538159,-688.59429255,0.00029998,2]
[322846438,1713397538178,-400.0,0.00029998,2]
[322846439,1713397538200,-277.60171443,0.00029998,2]
[322846440,1713397538220,-237.92490957,0.00029998,2]
[322846441,1713397538242,-354.39971412,0.00029998,2]
[322846442,1713397538261,-467.87279548,0.00029998,2]
[322846443,1713397538281,-937.89373734,0.00029999,2]
[322846444,1713397538300,-12406.86243343,0.00029999,2]
[322846445,1713397538323,-79205.07618238,0.0003,2]
[322846446,1713397604091,-300.0,0.00028999,2]
[322846447,1713397604111,-203.2761986,0.00029711,2]
[322846448,1713397604132,-2000.0,0.000298,2]
[322846449,1713397604151,-258.91235397,0.00029998,2]
[322846450,1713397604170,-156.10501473,0.00029998,2]
[322846451,1713397604190,-272.32070711,0.00029999,2]
[322846452,1713397604208,-188.96976676,0.00029999,2]
[322846453,1713397604228,-523.80732363,0.00029999,4]
[322846454,1713397604249,-4232.70120037,0.0003,2]
[322846455,1713397653095,-272.32070711,0.00028998,2]
[322846456,1713397653117,-300.0,0.00029999,2]
[322846457,1713397653138,-266.22039914,0.00029999,2]
[322846458,1713397653158,-27181.78549705,0.0003,2]
[322846459,1713397653178,-144.13157167,0.0003,2]
[322846562,1713397838695,-1737.43807572,0.000279,2]
[322846563,1713397838705,-2000.0,0.000299,2]
[322846564,1713397838715,-24.54545409,0.0003,2]
[322846565,1713397838724,-313.96401002,0.0003,4]
[322846566,1713397838733,-1813.7757836,0.0003,2]
[322846567,1713397838742,-154.84515485,0.00030599,2]
[322846568,1713397838752,-203.2761986,0.000306,2]
[322846569,1713397838760,-203.2761986,0.000306,2]
[322846570,1713397838769,-166.666666,0.00030603,2]
[322846571,1713397838778,-203.2761986,0.000308,2]
[322846572,1713397838787,-203.2761986,0.000308,2]
[322846573,1713397838796,-320.4553623,0.000308,10]
[322846574,1713397838806,-400.0,0.00030998,2]
[322846575,1713397838816,-3210.09,0.00031,2]
[322846576,1713397838826,-5828.9244,0.00031968,30]
[322846577,1713397838835,-622.86256007,0.00032,2]
[322846647,1713397843111,-4377.13743993,0.00032,2]
[322846648,1713397843120,-242.18206036,0.00032,3]
[322846649,1713397843129,-191.18536531,0.00032,4]
[322846650,1713397843138,-253.12061258,0.00032046,30]
[322846651,1713397843146,-417.0,0.00032337,2]
[322846652,1713397843156,-185.0,0.00032887,2]
[322846653,1713397843165,-1737.43807572,0.000329,2]
[322846654,1713397843174,-733.02901127,0.00033,30]
[322846671,1713398949103,-154.82968734,0.00019958,2]
[322846672,1713398949123,-525.74547902,0.00019959,2]
[322846673,1713398949144,-40.61821814,0.0001996,2]
[322846674,1713398958163,-480.38178186,0.0001996,2]
[322846675,1713398958184,-3742.37168361,0.00019961,2]
[322846676,1713398958205,-300.0,0.00019965,2]
[322846677,1713398958225,-300.0,0.00019965,2]
[322846678,1713398958245,-4431.14752704,0.00019967,2]
[322846679,1713398971147,-8266.14914314,0.00019967,2]
[322846680,1713398971168,-502.67386036,0.0002,2]
[322846681,1713398971189,-420.0,0.0002174,2]
[322846682,1713398971211,-420.0,0.00021962,2]
[322846683,1713398971232,-587.0,0.00024158,2]
[322846684,1713398981748,3089.42259642,0.000189,2]
[322846685,1713398982088,3089.42259642,0.000239,2]
[322846786,1713399046560,-500.0,0.00026475,3]